bitfinex/quotes_BTCUSD_20250505
["timestamp","ask_amount","ask_price","bid_price","bid_amount"]
[1746454978991,0.22302432,94162.0,94156.0,0.21241343]
[1746454979195,0.34,94181.0,94151.0,0.02652123]
[1746454979196,0.01062089,94154.0,94151.0,0.0166]
[1746454979402,0.22303941,94154.0,94153.0,0.0159]
[1746454979612,0.21241569,94155.0,94150.0,0.41242645]
[1746454979818,0.21241569,94155.0,94154.0,0.0325]
[1746454980239,0.21241569,94155.0,94154.0,0.0255]
[1746454980439,0.21241795,94154.0,94153.0,0.2]
[1746454981642,0.01665415,94155.0,94154.0,0.21241795]
[1746454981846,0.01665415,94155.0,94154.0,0.22811795]
[1746454982057,0.01665415,94155.0,94154.0,0.2426588]
[1746454982264,0.22300568,94168.0,94161.0,0.21240034]
[1746454982474,0.00265503,94167.0,94166.0,0.21239088]
[1746454982654,0.21238862,94167.0,94166.0,0.0165]
[1746454982858,0.2290407,94167.0,94166.0,0.0165]
[1746454983224,0.2290407,94167.0,94166.0,0.2165]
[1746454983428,0.22949612,94167.0,94166.0,0.2165]
[1746454984607,0.22949612,94167.0,94166.0,0.2319]
[1746454984819,0.22949612,94167.0,94166.0,0.2]
[1746454985235,0.21239765,94163.0,94162.0,0.40213701]
[1746454986168,0.01061965,94165.0,94150.0,0.0165]
[1746454986169,0.21242472,94151.0,94150.0,0.0165]
[1746454986576,0.01062213,94143.0,94140.0,0.0329]
[1746454986813,0.21244502,94142.0,94141.0,0.40213701]
[1746454987480,0.2230516,94149.0,94143.0,0.21244277]
[1746454987713,0.00265569,94148.0,94147.0,0.21243374]
[1746454987909,0.01327678,94150.0,94148.0,0.0155]
[1746454988126,0.00265544,94150.0,94148.0,0.22793131]
[1746454988365,0.01665397,94151.0,94150.0,0.21242697]
[1746454988503,0.01665397,94151.0,94150.0,0.24352697]
[1746454988717,0.01665397,94151.0,94150.0,0.25806782]
[1746454989144,0.01665397,94151.0,94150.0,0.46206782]
[1746454989995,0.01665397,94151.0,94150.0,0.45806782]
[1746454990445,0.01665397,94151.0,94150.0,0.46106782]
[1746454990611,0.01665397,94151.0,94150.0,0.51271712]
[1746454990820,0.01665397,94151.0,94150.0,0.50971712]
[1746454991409,0.00045542,94167.0,94166.0,0.22889088]
[1746454991631,0.00045542,94167.0,94166.0,0.24509088]
[1746454991816,0.01710707,94167.0,94166.0,0.24509088]
[1746454992365,0.01710707,94167.0,94166.0,0.23909088]
[1746454993082,0.01710707,94167.0,94166.0,0.25463173]
[1746454993433,0.01710707,94167.0,94165.0,0.01454085]
[1746454993650,0.01710707,94167.0,94166.0,0.21239088]
[1746454993833,0.01710707,94167.0,94166.0,0.32039088]
[1746454994036,0.01710707,94167.0,94166.0,0.63839088]
[1746454994291,0.01710707,94167.0,94166.0,0.627]
[1746454994461,0.22949569,94167.0,94166.0,0.627]
[1746454994642,0.21238789,94168.0,94166.0,0.626]
[1746454994845,0.22300589,94169.0,94166.0,0.83839008]
[1746454995074,0.21238765,94168.0,94166.0,0.626]
[1746454995246,0.22300415,94169.0,94166.0,0.627]
[1746454995456,0.21238862,94167.0,94166.0,0.627]
[1746454995660,0.21238862,94167.0,94166.0,0.625]
[1746454995860,0.21238701,94168.0,94166.0,0.625]
[1746454996078,0.21504345,94167.0,94166.0,0.625]
[1746454996401,0.21238862,94167.0,94166.0,0.625]
[1746454996539,0.21238862,94167.0,94166.0,0.201]
[1746454996761,0.21238862,94167.0,94166.0,0.202]
[1746454997159,0.21238862,94167.0,94166.0,0.001]
[1746454997621,0.21238862,94167.0,94166.0,0.002]
[1746454997823,0.21238862,94167.0,94166.0,0.001]
[1746454998160,0.21238862,94167.0,94166.0,0.002]
[1746454999411,0.21239539,94164.0,94163.0,0.195]
[1746455000184,0.21240441,94160.0,94159.0,0.424]
[1746455000814,0.2290577,94160.0,94159.0,0.424]
[1746455001386,0.2290577,94160.0,94159.0,0.626]
[1746455002218,0.2290577,94160.0,94159.0,0.627]
[1746455003430,0.2451577,94160.0,94159.0,0.627]
[1746455004265,0.2451577,94160.0,94159.0,0.427]
[1746455005252,0.2604577,94160.0,94159.0,0.001]
[1746455005456,0.21241569,94155.0,94154.0,0.2]
[1746455005875,0.22881569,94155.0,94154.0,0.2]
[1746455006086,0.21244051,94144.0,94143.0,0.2]
[1746455006296,0.21244051,94144.0,94143.0,0.20045542]
[1746455007701,0.21244051,94144.0,94143.0,0.20245542]
[1746455008474,0.21244051,94144.0,94143.0,0.20545542]
[1746455009652,0.22909544,94144.0,94143.0,0.20545542]
[1746455011302,0.72909544,94144.0,94143.0,0.20545542]
[1746455015041,0.22909544,94144.0,94143.0,0.20545542]
[1746455015260,0.22909544,94144.0,94143.0,0.00545542]
[1746455016446,0.22909544,94144.0,94141.0,0.2]
[1746455016447,0.21244502,94142.0,94141.0,0.19845542]
[1746455016666,0.24274502,94142.0,94141.0,0.19845542]
[1746455017340,0.21247211,94130.0,94129.0,14.43677909]
[1746455019535,0.22912941,94130.0,94129.0,14.43677909]
[1746455019980,0.22912941,94130.0,94129.0,14.43877909]
[1746455020183,0.22912941,94130.0,94129.0,14.63877909]
[1746455020621,0.22912941,94130.0,94129.0,14.64077909]
[1746455022350,0.22912941,94130.0,94129.0,14.21677909]
[1746455022855,0.22912941,94130.0,94129.0,14.19677909]
[1746455023306,0.0166573,94130.0,94129.0,14.19677909]
[1746455023510,0.22912941,94130.0,94129.0,14.18977909]
[1746455023938,0.0166573,94130.0,94129.0,14.18977909]
[1746455024143,0.22912941,94130.0,94129.0,14.18977909]
[1746455025160,0.0166573,94130.0,94129.0,14.18977909]
[1746455025586,0.22912941,94130.0,94129.0,14.18977909]
[1746455026546,0.22769912,94130.0,94129.0,14.18977909]
[1746455026749,0.21247211,94130.0,94129.0,14.18977909]
[1746455027592,0.22309169,94132.0,94129.0,14.2004028]
[1746455027817,0.22309169,94132.0,94129.0,14.41287717]
[1746455028035,0.22309169,94132.0,94129.0,14.18977909]
[1746455028443,0.01062247,94140.0,94136.0,0.01062292]
[1746455028669,0.01062213,94143.0,94139.0,0.01062258]
[1746455028801,0.22351855,94144.0,94139.0,0.01062258]
[1746455028998,0.21509905,94143.0,94140.0,0.21244747]
[1746455029202,0.22307189,94141.0,94136.0,0.01062292]
[1746455029522,0.01062281,94137.0,94134.0,0.01062315]
[1746455029727,0.0106227,94138.0,94134.0,0.01062315]
[1746455029940,0.01062292,94136.0,94130.0,0.40743218]
[1746455030112,0.22308595,94136.0,94133.0,0.21246335]
[1746455030311,0.22308595,94136.0,94133.0,0.2124653]
[1746455030675,0.21246114,94135.0,94132.0,0.22308899]
[1746455030911,0.22308265,94136.0,94134.0,0.001]
[1746455031242,0.21245829,94137.0,94134.0,0.41246291]
[1746455031453,0.2230811,94137.0,94134.0,0.41246291]
[1746455031656,0.23972922,94140.0,94134.0,0.41246291]
[1746455031657,0.01665625,94140.0,94134.0,0.2]
[1746455031848,0.01665625,94140.0,94139.0,0.21245179]
[1746455032459,0.01665625,94140.0,94139.0,0.56155179]
[1746455032659,0.01665625,94140.0,94139.0,0.66755179]
[1746455033164,0.01665625,94140.0,94139.0,0.86755179]
[1746455033412,0.01665625,94140.0,94139.0,0.44355179]
[1746455033614,0.01665625,94140.0,94139.0,0.46348505]
[1746455034222,0.01665625,94140.0,94139.0,0.4780259]
[1746455034780,0.01665625,94140.0,94139.0,0.4790259]
[1746455037068,0.01062112,94152.0,94143.0,0.22698362]
[1746455037273,0.21241795,94154.0,94143.0,0.24308362]
[1746455037440,0.01062101,94153.0,94143.0,0.26301688]
[1746455037810,0.2230442,94152.0,94143.0,0.25601688]
[1746455038022,0.21242473,94151.0,94143.0,0.23991688]
[1746455038264,0.21289564,94144.0,94143.0,0.01993326]
[1746455038470,0.21289564,94144.0,94143.0,0.21993326]
[1746455038642,0.21289564,94144.0,94143.0,0.2]
[1746455041646,0.21289564,94144.0,94143.0,0.1678]
[1746455041647,0.24539564,94144.0,94143.0,0.1678]
[1746455041856,0.55975857,94136.0,94135.0,0.05011137]
[1746455042051,0.55246985,94131.0,94130.0,0.05011137]
[1746455042283,0.55976985,94131.0,94130.0,0.05011137]
[1746455042509,0.57643065,94131.0,94130.0,0.05011137]
[1746455042881,0.58863065,94131.0,94130.0,0.05011137]
[1746455043083,0.3682,94130.0,94129.0,13.9741945]
[1746455043288,0.3692,94130.0,94129.0,13.9741945]
[1746455043483,0.43374085,94130.0,94129.0,13.9741945]
[1746455043711,0.59579299,94130.0,94129.0,13.68522122]
[1746455043867,0.59579299,94130.0,94129.0,13.49517345]
[1746455044071,0.59579299,94130.0,94129.0,13.46629345]
[1746455044469,0.62632249,94130.0,94129.0,13.16414704]
[1746455044669,0.66659263,94130.0,94129.0,13.10653897]
[1746455044821,0.66659263,94130.0,94129.0,12.2874599]
[1746455045025,0.65859263,94130.0,94129.0,12.23283585]
[1746455045227,0.65859263,94130.0,94129.0,12.17183585]
[1746455045429,0.66859263,94130.0,94129.0,12.17283585]
[1746455046037,0.67859263,94130.0,94129.0,12.17383585]
[1746455046243,0.64632249,94130.0,94129.0,12.17383585]
[1746455046496,0.54704979,94130.0,94129.0,12.17383585]
[1746455046697,0.411,94130.0,94129.0,12.17383585]
[1746455047220,0.41554085,94130.0,94129.0,12.17283585]
[1746455047859,0.42354085,94130.0,94129.0,12.17383585]
[1746455048559,0.069,94130.0,94129.0,12.17383585]
[1746455048793,0.36165659,94130.0,94129.0,12.17383585]
[1746455049011,0.018,94130.0,94129.0,12.17383585]
[1746455049641,0.03466339,94130.0,94129.0,12.17383585]
[1746455049813,0.02731977,94130.0,94129.0,12.17283585]
[1746455050015,0.13284006,94130.0,94129.0,12.17283585]
[1746455050172,0.12884006,94130.0,94129.0,12.17183585]
[1746455050392,0.12884006,94130.0,94129.0,12.18245885]
[1746455050572,0.12984006,94130.0,94129.0,12.18245885]
[1746455050772,0.11317667,94130.0,94129.0,12.18245885]
[1746455050978,0.11217667,94130.0,94129.0,12.18245885]
[1746455051226,0.10952029,94130.0,94129.0,12.18245885]
[1746455051631,0.10917667,94130.0,94129.0,12.18245885]
[1746455051980,0.11517667,94130.0,94129.0,12.17645885]
[1746455052225,0.10917667,94130.0,94129.0,12.17545885]
[1746455052424,0.00365638,94130.0,94129.0,12.17545885]
[1746455052639,0.00965638,94130.0,94129.0,12.17645885]
[1746455053037,0.02519723,94130.0,94129.0,12.17645885]
[1746455053862,0.0418611,94130.0,94129.0,12.17645885]
[1746455054712,0.4318611,94130.0,94129.0,12.17645885]
[1746455054915,0.53472501,94130.0,94129.0,12.17645885]
[1746455055120,0.53472501,94130.0,94129.0,12.11384885]
[1746455055533,0.51806114,94130.0,94129.0,12.11384885]
[1746455055856,0.54859064,94130.0,94129.0,12.04724368]
[1746455056564,0.40554085,94130.0,94129.0,12.04624368]
[1746455056789,0.41654085,94130.0,94129.0,12.04724368]
[1746455056991,0.42454085,94130.0,94129.0,12.04724368]
[1746455057597,0.37454085,94130.0,94129.0,12.04724368]
[1746455057820,0.42454085,94130.0,94129.0,12.04724368]
[1746455058021,0.41654085,94130.0,94129.0,12.04724368]
[1746455058216,0.48106114,94130.0,94129.0,12.04724368]
[1746455058471,0.37554085,94130.0,94129.0,12.04724368]
[1746455058685,0.36454085,94130.0,94129.0,12.04624368]
[1746455058893,0.41454085,94130.0,94129.0,12.03924368]
[1746455059294,0.42354085,94130.0,94129.0,12.03924368]
[1746455059735,0.40554085,94130.0,94129.0,12.03924368]
[1746455060051,0.51806114,94130.0,94129.0,12.03924368]
[1746455060187,0.52606114,94130.0,94129.0,12.03924368]
[1746455060597,0.51806114,94130.0,94129.0,12.03924368]
[1746455060802,0.51106114,94130.0,94129.0,12.03924368]
[1746455060999,0.73153325,94130.0,94129.0,12.03924368]
[1746455062602,0.74819938,94130.0,94129.0,12.03924368]
[1746455063026,0.75419938,94130.0,94129.0,12.03924368]
[1746455064926,0.75419938,94130.0,94129.0,12.02862068]
[1746455065100,0.75419938,94130.0,94129.0,11.96682068]
[1746455066119,0.75419938,94130.0,94129.0,11.95982068]
[1746455066285,0.64867909,94130.0,94129.0,11.95982068]
[1746455066490,0.63201296,94130.0,94129.0,11.95982068]
[1746455069556,0.64867907,94130.0,94129.0,11.95982068]
[1746455070588,0.59867907,94130.0,94129.0,11.95982068]
[1746455070789,0.64867907,94130.0,94129.0,11.95982068]
[1746455071158,0.75419936,94130.0,94129.0,11.95982068]
[1746455073380,0.75419936,94130.0,94129.0,11.95282068]
[1746455074545,0.64867907,94130.0,94129.0,11.95282068]
[1746455075551,0.64267907,94130.0,94129.0,11.95282068]
[1746455075759,0.64767907,94130.0,94129.0,11.95282068]
[1746455076207,0.63967907,94130.0,94129.0,11.95282068]
[1746455076409,0.64667907,94130.0,94129.0,11.95282068]
[1746455076609,0.75219936,94130.0,94129.0,11.95282068]
[1746455080370,0.75219936,94130.0,94129.0,11.94582068]
[1746455082822,0.64667907,94130.0,94129.0,11.94582068]
[1746455084546,0.63213822,94130.0,94129.0,11.94582068]
[1746455085240,0.64667907,94130.0,94129.0,11.94582068]
[1746455086079,0.64667907,94130.0,94129.0,11.97722068]
[1746455086647,0.63001296,94130.0,94129.0,11.97722068]
[1746455086784,0.73553325,94130.0,94129.0,11.97722068]
[1746455086978,0.73553325,94130.0,94129.0,11.98890668]
[1746455087183,0.73553325,94130.0,94129.0,11.95750668]
[1746455087408,0.73553325,94130.0,94129.0,11.95150668]
[1746455088029,0.73553325,94130.0,94129.0,11.89578648]
[1746455089443,0.75219882,94130.0,94129.0,11.89578648]
[1746455090319,0.75219882,94130.0,94129.0,11.83177648]
[1746455093442,0.64667853,94130.0,94129.0,11.83177648]
[1746455094447,0.64667853,94130.0,94129.0,11.80811047]
[1746455095366,0.58213768,94130.0,94129.0,11.80811047]
[1746455095568,0.63213768,94130.0,94129.0,11.83941047]
[1746455096063,0.58213768,94130.0,94129.0,11.83941047]
[1746455096295,0.64667853,94130.0,94129.0,11.83941047]
[1746455096823,0.73553325,94130.0,94129.0,11.83941047]
[1746455097041,0.63001296,94130.0,94129.0,11.83941047]
[1746455099757,0.64667783,94130.0,94129.0,11.83941047]
[1746455101544,0.64667783,94130.0,94129.0,11.83241047]
[1746455104226,0.64667783,94130.0,94129.0,11.78170565]
[1746455104429,0.58113698,94130.0,94129.0,11.78170565]
[1746455104607,0.63113698,94130.0,94129.0,11.78170565]
[1746455105420,0.62413698,94130.0,94129.0,11.78170565]
[1746455105604,0.63013698,94130.0,94129.0,11.78170565]
[1746455106607,0.62513698,94130.0,94129.0,11.78170565]
[1746455106778,0.63013698,94130.0,94129.0,11.78170565]
[1746455106979,0.57513698,94130.0,94129.0,11.78170565]
[1746455107182,0.56913698,94130.0,94129.0,11.78170565]
[1746455107583,0.57713698,94130.0,94129.0,11.78170565]
[1746455107794,0.56047211,94130.0,94129.0,11.78170565]
[1746455108139,0.55547211,94130.0,94129.0,11.78170565]
[1746455108339,0.56047211,94130.0,94129.0,11.78170565]
[1746455108761,0.56047211,94130.0,94129.0,11.77470565]
[1746455110124,0.6071066,94130.0,94129.0,11.77470565]
[1746455110434,0.56047211,94130.0,94129.0,11.77470565]
[1746455110769,0.57713606,94130.0,94129.0,11.77470565]
[1746455115684,0.57713606,94130.0,94129.0,11.76770565]
[1746455115958,0.17273606,94130.0,94129.0,11.76770565]
[1746455116174,0.01062258,94139.0,94129.0,11.84292594]
[1746455116386,0.01062247,94140.0,94138.0,0.2971856]
[1746455116600,0.22307221,94141.0,94138.0,0.08473185]
[1746455116808,0.21245087,94140.0,94138.0,0.08473185]
[1746455116960,0.00045513,94144.0,94141.0,0.21244471]
[1746455117159,0.01107715,94144.0,94142.0,0.0138]
[1746455117373,0.21244277,94143.0,94142.0,0.0138]
[1746455117570,0.00045513,94144.0,94142.0,0.21244502]
[1746455117739,0.00045513,94144.0,94142.0,0.21144502]
[1746455117928,0.00045513,94144.0,94142.0,0.21044502]
[1746455118141,0.21244728,94141.0,94138.0,0.001]
[1746455118354,0.01062213,94143.0,94140.0,0.21244915]
[1746455118598,0.22351799,94144.0,94140.0,0.21244954]
[1746455118818,0.001,94143.0,94142.0,0.21244462]
[1746455119704,0.21244502,94142.0,94140.0,0.001]
[1746455119867,0.21244728,94141.0,94140.0,0.001]
[1746455120193,0.21244728,94141.0,94140.0,0.0165]
[1746455120345,0.21244502,94142.0,94140.0,0.0317]
[1746455120525,0.21244502,94142.0,94141.0,0.0307]
[1746455121172,0.21244502,94142.0,94141.0,0.2297]
[1746455121377,0.21244502,94142.0,94141.0,0.2287]
[1746455122013,0.21344502,94142.0,94141.0,0.2387]
[1746455122246,0.21444502,94142.0,94141.0,0.0447]
[1746455123051,0.21444502,94142.0,94141.0,0.0377]
[1746455123824,0.23110291,94142.0,94141.0,0.0377]
[1746455125497,0.21444502,94142.0,94141.0,0.0377]
[1746455126284,0.28267135,94142.0,94141.0,0.016]
[1746455126483,0.21444502,94142.0,94141.0,0.016]
[1746455126906,0.21444502,94142.0,94141.0,0.027684]
[1746455127359,0.59627695,94142.0,94141.0,0.027684]
[1746455127567,0.62823637,94142.0,94141.0,0.011684]
[1746455127769,0.73375666,94142.0,94141.0,0.011684]
[1746455128024,0.73575666,94142.0,94141.0,0.022684]
[1746455128232,0.73475666,94142.0,94141.0,0.017684]
[1746455128433,0.73375666,94142.0,94141.0,0.011684]
[1746455128639,0.73475666,94142.0,94141.0,0.011684]
[1746455128804,0.61193637,94142.0,94141.0,0.011724]
[1746455128954,0.61293637,94142.0,94141.0,0.011724]
[1746455129155,0.61393637,94142.0,94141.0,0.011724]
[1746455129517,0.63003637,94142.0,94141.0,0.011724]
[1746455129719,0.73555666,94142.0,94141.0,0.011724]
[1746455130580,0.73455666,94142.0,94141.0,0.011724]
[1746455131031,0.73555666,94142.0,94141.0,0.013724]
[1746455131245,0.73355666,94142.0,94141.0,0.004724]
[1746455131876,0.73455666,94142.0,94141.0,0.005724]
[1746455132087,0.73355666,94142.0,94141.0,0.004724]
[1746455132294,0.78355666,94142.0,94141.0,0.004724]
[1746455132503,0.78455666,94142.0,94141.0,0.004724]
[1746455133091,0.78555666,94142.0,94141.0,0.005724]
[1746455133827,0.68003637,94142.0,94141.0,0.005724]
[1746455134172,0.67903637,94142.0,94141.0,0.005724]
[1746455134583,0.67903637,94142.0,94141.0,0.004724]
[1746455135441,0.68003637,94142.0,94141.0,0.004724]
[1746455138012,0.68003637,94142.0,94141.0,0.00151608]
[1746455138425,0.78555666,94142.0,94141.0,0.00151608]
[1746455139195,0.68003637,94142.0,94141.0,0.00151608]
[1746455139719,0.59839552,94142.0,94141.0,0.00151608]
[1746455139927,0.24179552,94142.0,94141.0,0.00151608]
[1746455140684,0.58179552,94142.0,94141.0,0.00151608]
[1746455141744,0.58079552,94142.0,94141.0,0.00151608]
[1746455141940,0.67562473,94142.0,94141.0,0.00151608]
[1746455142149,0.69122473,94142.0,94141.0,0.00151608]
[1746455142399,0.69222473,94142.0,94141.0,0.00351608]
[1746455143412,0.70284069,94142.0,94141.0,0.00351608]
[1746455143768,0.5817204,94142.0,94141.0,0.00351608]
[1746455145281,0.21246985,94131.0,94130.0,0.08224793]
[1746455145703,0.21246985,94131.0,94130.0,0.09804793]
[1746455146123,0.22913132,94131.0,94130.0,0.09804793]
[1746455148207,0.22913132,94131.0,94130.0,0.0158]
[1746455148562,0.23013132,94131.0,94130.0,0.0168]
[1746455148918,0.23113132,94131.0,94130.0,0.0208]
[1746455149347,0.01866147,94131.0,94130.0,0.0317]
[1746455149548,0.002,94131.0,94130.0,0.32890396]
[1746455149751,0.01866057,94131.0,94130.0,0.32890396]
[1746455149952,0.01866057,94131.0,94130.0,0.11643185]
[1746455150179,0.01866057,94131.0,94130.0,0.31643185]
[1746455150391,0.01866057,94131.0,94130.0,0.52890396]
[1746455150598,0.01766057,94131.0,94130.0,0.52490396]
[1746455151471,0.01666057,94131.0,94130.0,0.53472865]
[1746455151690,0.01766057,94131.0,94130.0,0.54072865]
[1746455152050,0.01866057,94131.0,94130.0,0.54572865]
[1746455152246,0.01866057,94131.0,94130.0,0.53872865]
[1746455153833,0.01766057,94131.0,94130.0,0.53372865]
[1746455154045,0.01766057,94131.0,94130.0,0.4489968]
[1746455154206,0.01766057,94131.0,94130.0,0.46886]
[1746455154410,0.01666057,94131.0,94130.0,0.46286]
[1746455154620,0.01766057,94131.0,94130.0,0.47879216]
[1746455155171,0.01866057,94131.0,94130.0,0.47779216]
[1746455155371,0.01966057,94131.0,94130.0,0.48679216]
[1746455155773,0.01866057,94131.0,94130.0,0.48179216]
[1746455156195,0.01966057,94131.0,94130.0,0.48979216]
[1746455156718,0.00466057,94131.0,94130.0,0.59531245]
[1746455156916,0.003,94131.0,94130.0,0.59531245]
[1746455158511,0.01107715,94144.0,94141.0,0.21244728]
[1746455158730,0.22351847,94144.0,94141.0,0.23934728]
[1746455158931,0.01107715,94144.0,94141.0,0.0269]
[1746455159168,0.00045513,94144.0,94141.0,0.43934728]
[1746455159375,0.01107715,94144.0,94141.0,0.43934728]
[1746455159587,0.2235186,94144.0,94141.0,0.43634728]
[1746455159760,0.002,94142.0,94141.0,0.45031679]
[1746455160142,0.01865731,94142.0,94141.0,0.45031679]
[1746455160344,0.002,94142.0,94141.0,0.25234922]
[1746455160551,0.21444502,94142.0,94141.0,0.25234922]
[1746455160749,0.21444502,94142.0,94141.0,0.23786951]
[1746455161043,0.21544502,94142.0,94141.0,0.24486951]
[1746455162145,0.21544502,94142.0,94141.0,0.23696951]
[1746455163860,0.003,94142.0,94141.0,0.44941679]
[1746455164188,0.003,94142.0,94141.0,0.52456669]
[1746455164735,0.003,94142.0,94141.0,0.45731679]
[1746455165368,0.21544502,94142.0,94141.0,0.23696951]
[1746455165968,0.003,94142.0,94141.0,0.23696951]
[1746455166370,0.21544502,94142.0,94141.0,0.23696951]
[1746455166569,0.21544502,94142.0,94141.0,0.22996951]
[1746455168397,0.21544502,94142.0,94141.0,0.22096951]
[1746455168645,0.003,94142.0,94141.0,0.22096951]
[1746455168795,0.003,94142.0,94141.0,0.44131679]
[1746455169200,0.003,94142.0,94141.0,0.22886951]
[1746455169406,0.21544502,94142.0,94141.0,0.22096951]
[1746455169955,0.21544502,94142.0,94141.0,0.213]
[1746455170144,0.003,94142.0,94141.0,0.04534161]
[1746455170280,0.003,94142.0,94141.0,0.2486078]
[1746455170486,0.003,94142.0,94141.0,0.2565078]
[1746455171097,0.003,94142.0,94141.0,0.4565078]
[1746455171874,0.003,94142.0,94141.0,0.46644718]
[1746455172358,0.003,94142.0,94141.0,0.57196747]
[1746455172774,0.003,94142.0,94141.0,0.48633331]
[1746455173674,0.003,94142.0,94141.0,0.47933331]
[1746455174417,0.003,94142.0,94141.0,1.25787416]
[1746455175375,0.002,94142.0,94141.0,1.25187416]
[1746455175601,0.002,94142.0,94141.0,1.22943331]
[1746455175808,0.002,94142.0,94141.0,1.23943331]
[1746455175987,0.002,94142.0,94141.0,1.3578536]
[1746455176191,0.003,94142.0,94141.0,1.24443331]
[1746455176602,0.23184502,94142.0,94141.0,0.23982551]
[1746455176802,0.23284502,94142.0,94141.0,0.24682551]
[1746455177007,0.23284502,94142.0,94141.0,0.22693938]
[1746455177210,0.23284502,94142.0,94141.0,0.017]
[1746455177570,0.23184502,94142.0,94141.0,0.007]
[1746455177972,0.23184502,94142.0,94141.0,0.012]
[1746455178248,0.23184502,94142.0,94141.0,0.007]
[1746455178411,0.23084502,94142.0,94141.0,0.007]
[1746455178624,0.23084502,94142.0,94141.0,0.009]
[1746455178798,0.23084502,94142.0,94141.0,0.002]
[1746455178799,0.22984502,94142.0,94141.0,0.002]
[1746455178999,0.24650071,94142.0,94141.0,0.005]
[1746455179582,0.23257643,94142.0,94141.0,0.005]
[1746455180057,0.23257643,94142.0,94141.0,0.002]
[1746455180415,0.23357643,94142.0,94141.0,0.002]
[1746455180621,0.23357643,94142.0,94133.0,0.01990625]
[1746455180622,0.21246308,94134.0,94133.0,0.01490625]
[1746455181251,0.21246308,94134.0,94132.0,0.2]
[1746455181252,0.21246534,94133.0,94132.0,0.2]
[1746455182084,0.21246534,94133.0,94132.0,0.20995469]
[1746455182591,0.21246534,94133.0,94132.0,0.31547498]
[1746455182905,0.21246534,94133.0,94132.0,0.21195469]
[1746455183123,0.21246534,94133.0,94132.0,0.21495469]
[1746455184482,0.01062304,94135.0,94132.0,0.2062006]
[1746455184685,0.21245758,94137.0,94133.0,0.21246534]
[1746455184890,0.22308198,94136.0,94133.0,0.21246534]
[1746455185095,0.22308198,94136.0,94134.0,0.00995469]
[1746455185269,0.21246082,94135.0,94134.0,0.00995469]
[1746455186060,0.22796082,94135.0,94134.0,0.00995469]
[1746455186644,0.22796082,94135.0,94134.0,0.01195469]
[1746455186839,0.21246082,94135.0,94134.0,0.01195469]
[1746455187285,0.21246082,94135.0,94134.0,0.01495469]
[1746455187757,0.21246082,94135.0,94134.0,0.00795469]
[1746455187999,0.21246082,94135.0,94134.0,0.11347498]
[1746455188209,0.22307272,94140.0,94134.0,0.00795469]
[1746455188476,0.01062281,94137.0,94134.0,0.20795469]
[1746455188713,0.01062281,94137.0,94134.0,0.205]
[1746455188935,0.21246082,94135.0,94134.0,0.205]
[1746455189150,0.21246082,94135.0,94134.0,0.202]
[1746455189382,0.22308149,94136.0,94134.0,0.002]
[1746455189678,0.02727875,94137.0,94134.0,0.21546307]
[1746455189934,0.01665594,94137.0,94136.0,0.21245857]
[1746455190123,0.01665594,94137.0,94136.0,0.56885857]
[1746455190349,0.01665594,94137.0,94136.0,1.00075857]
[1746455190482,0.01665594,94137.0,94136.0,0.99285857]
[1746455190704,0.01665594,94137.0,94136.0,0.424]
[1746455190926,0.22911225,94137.0,94136.0,0.424]
[1746455191129,0.01665594,94137.0,94136.0,0.424]
[1746455191748,0.01665594,94137.0,94136.0,0.63645857]
[1746455192189,0.01665594,94137.0,94136.0,0.424]
[1746455192399,0.22911225,94137.0,94136.0,0.624]
[1746455192604,0.01665594,94137.0,94136.0,0.83645857]
[1746455192810,0.01665594,94137.0,94136.0,0.7774559]
[1746455193009,0.01665594,94137.0,94136.0,1.00981379]
[1746455193233,0.01665594,94137.0,94136.0,1.01381379]
[1746455193405,0.01665594,94137.0,94136.0,0.9082935]
[1746455193613,0.01665594,94137.0,94136.0,0.69983493]
[1746455193795,0.01665594,94137.0,94136.0,0.69583493]
[1746455194158,0.01665594,94137.0,94136.0,0.9122935]
[1746455196633,0.22307444,94139.0,94137.0,0.21245618]
[1746455196833,0.01062258,94139.0,94137.0,0.21245618]
[1746455197034,0.01062258,94139.0,94138.0,0.01989932]
[1746455197035,0.22307453,94139.0,94138.0,0.01989932]
[1746455197292,0.22307453,94139.0,94138.0,0.21989932]
[1746455197676,0.21244956,94140.0,94138.0,0.21989932]
[1746455197883,0.21244956,94140.0,94139.0,0.01989932]
[1746455198311,0.22307037,94141.0,94139.0,0.01989932]
[1746455198516,0.21244954,94140.0,94138.0,0.204]
[1746455198718,0.21244954,94140.0,94139.0,0.01989822]
[1746455199560,0.22910509,94140.0,94139.0,0.01989822]
[1746455199985,0.22910509,94140.0,94139.0,0.01289822]
[1746455200187,0.22910509,94140.0,94139.0,0.2268473]
[1746455200394,0.01665555,94140.0,94139.0,0.51033182]
[1746455200594,0.01665555,94140.0,94139.0,0.86593182]
[1746455200800,0.01665555,94140.0,94139.0,0.92176743]
[1746455201040,0.01062033,94159.0,94139.0,0.92176743]
[1746455201041,0.01061954,94166.0,94160.0,0.01062022]
[1746455201246,0.01061999,94162.0,94158.0,0.21240792]
[1746455201574,0.01665238,94165.0,94162.0,0.21239943]
[1746455201764,0.02727203,94165.0,94157.0,0.01062055]
[1746455201972,0.2230158,94164.0,94156.0,0.40743218]
[1746455202173,0.01061976,94164.0,94162.0,0.21239965]
[1746455202374,0.01061976,94164.0,94159.0,0.2]
[1746455202375,0.01061999,94162.0,94159.0,0.2]
[1746455202540,0.21240229,94161.0,94159.0,0.2]
[1746455202752,0.01665238,94165.0,94160.0,0.22302462]
[1746455202950,0.01665238,94165.0,94164.0,0.21239539]
[1746455203127,0.01665238,94165.0,94164.0,0.26544621]
[1746455204123,0.01665238,94165.0,94164.0,0.84348706]
[1746455204370,0.01061717,94187.0,94183.0,0.21235193]
[1746455204543,0.01061728,94186.0,94183.0,0.21235193]
[1746455204766,0.2123548,94182.0,94180.0,0.421]
[1746455204971,0.22765705,94181.0,94180.0,0.421]
[1746455205895,0.22765705,94181.0,94180.0,0.422]
[1746455206093,0.22765705,94181.0,94180.0,0.43286446]
[1746455206294,0.21235705,94181.0,94180.0,0.01186446]
[1746455206712,0.21235524,94182.0,94180.0,0.07764819]
[1746455206919,0.2229719,94183.0,94180.0,0.01186446]
[1746455207119,0.01061728,94186.0,94182.0,0.2103548]
[1746455207323,0.01061751,94184.0,94180.0,0.22422215]
[1746455207524,0.01061751,94184.0,94181.0,0.21235667]
[1746455207728,0.0166481,94187.0,94182.0,0.01061774]
[1746455207904,0.01261695,94189.0,94186.0,0.21234578]
[1746455208103,0.01061706,94188.0,94184.0,0.21234821]
[1746455208334,0.22295849,94188.0,94184.0,0.21234821]
[1746455208774,0.001,94187.0,94185.0,0.21234782]
[1746455209182,0.22396074,94187.0,94185.0,0.2]
[1746455209567,0.2406076,94187.0,94185.0,0.2]